bitfinex/quotes_SOLUSD_20250609
["timestamp","ask_amount","ask_price","bid_price","bid_amount"]
[1749488741243,6.40040962,156.24,156.19,66.03719457]
[1749488741443,26.11535557,156.24,156.2,19.71494595]
[1749488741638,26.11535557,156.24,156.21,10.58]
[1749488743563,19.71494595,156.24,156.21,10.58]
[1749488744763,26.11538797,156.24,156.21,10.58]
[1749488747038,26.11580244,156.23,156.21,10.58]
[1749488747241,19.71494595,156.23,156.21,10.58]
[1749488747543,26.11578875,156.23,156.21,10.58]
[1749488747765,19.71494595,156.22,156.21,10.58]
[1749488749069,24.50087106,156.22,156.21,10.58]
[1749488749237,30.90210009,156.22,156.21,10.58]
[1749488755254,30.90210009,156.22,156.19,10.58]
[1749488755452,19.71494595,156.2,156.19,10.58]
[1749488755764,6.40122903,156.22,156.19,10.58]
[1749488755765,19.71494595,156.21,156.19,10.58]
[1749488756769,26.1167492,156.21,156.19,10.58]
[1749488757277,19.71494595,156.21,156.19,10.58]
[1749488759484,26.1163531,156.22,156.19,10.58]
[1749488760192,19.71494595,156.2,156.19,10.58]
[1749488760355,22.4010088,156.25,156.19,10.58]
[1749488760555,19.71494595,156.22,156.19,10.58]
[1749488760955,22.4010088,156.25,156.19,10.58]
[1749488761257,19.71494595,156.22,156.19,10.58]
[1749488762863,26.11617784,156.22,156.19,10.58]
[1749488763261,19.71494595,156.22,156.19,10.58]
[1749488763625,19.71494595,156.24,156.2,18.64964886]
[1749488763880,4.78977187,156.23,156.2,18.64964886]
[1749488764075,19.71494595,156.21,156.19,10.58]
[1749488764660,22.4,156.25,156.19,10.58]
[1749488764863,19.71494595,156.22,156.19,10.58]
[1749488765398,19.71494595,156.2,156.19,10.58]
[1749488766467,19.71494595,156.21,156.19,10.58]
[1749488766654,19.71494595,156.22,156.19,10.58]
[1749488767370,26.1155372,156.24,156.19,36.69737666]
[1749488767574,4.79105518,156.23,156.19,36.69737666]
[1749488767775,19.71494595,156.23,156.19,30.29494595]
[1749488768092,19.71494595,156.22,156.19,10.58]
[1749488768283,19.71494595,156.23,156.19,16.98245807]
[1749488768469,19.71494595,156.23,156.19,10.58]
[1749488770601,4.79099064,156.25,156.22,78.26459481]
[1749488770784,26.11430305,156.27,156.22,78.26459481]
[1749488770785,26.11430305,156.27,156.22,84.66573173]
[1749488770984,4.79098651,156.26,156.22,84.66573173]
[1749488771189,4.79098651,156.25,156.22,84.66573173]
[1749488771388,6.3993571,156.27,156.22,84.66573173]
[1749488771698,4.79014557,156.26,156.23,19.71494595]
[1749488771889,19.71494595,156.25,156.23,18.64964886]
[1749488772089,24.50554788,156.24,156.2,18.64964886]
[1749488772271,19.71494595,156.21,156.19,50.48]
[1749488772470,19.71494595,156.2,156.19,69.12964886]
[1749488772692,19.71494595,156.21,156.19,69.12964886]
[1749488772993,19.71494595,156.22,156.19,69.12964886]
[1749488774903,19.71494595,156.23,156.19,69.12964886]
[1749488775080,19.71494595,156.23,156.19,75.53210378]
[1749488775287,19.71494595,156.23,156.2,58.52964886]
[1749488775500,19.71494595,156.24,156.2,58.52964886]
[1749488776305,19.71494595,156.24,156.2,64.93154855]
[1749488776503,26.11500732,156.25,156.2,84.6464945]
[1749488776806,24.50615097,156.24,156.2,64.93154855]
[1749488777109,19.71494595,156.24,156.2,64.93154855]
[1749488777579,19.71494595,156.23,156.2,58.52964886]
[1749488777787,19.71494595,156.22,156.2,58.52964886]
[1749488777984,19.71494595,156.23,156.2,58.52964886]
[1749488778401,6.4004766,156.24,156.2,58.52964886]
[1749488778402,19.71494595,156.22,156.2,58.52964886]
[1749488778591,19.71494595,156.21,156.2,39.88]
[1749488778790,24.5068525,156.21,156.2,39.88]
[1749488778985,19.71494595,156.21,156.2,39.88]
[1749488779809,30.9088678,156.21,156.19,10.58]
[1749488779990,19.71494595,156.2,156.19,10.58]
[1749488780185,6.40163881,156.21,156.19,10.58]
[1749488780590,19.71494595,156.2,156.19,10.58]
[1749488781191,6.40163881,156.21,156.19,10.58]
[1749488781396,6.40108083,156.23,156.19,10.58]
[1749488781600,19.71494595,156.2,156.19,10.58]
[1749488781802,19.71494595,156.21,156.19,10.58]
[1749488781986,19.71494595,156.2,156.19,10.58]
[1749488783211,19.71494595,156.21,156.19,10.58]
[1749488784099,6.40059112,156.24,156.2,18.64964886]
[1749488784300,6.40059112,156.24,156.2,58.52964886]
[1749488784301,24.5080149,156.23,156.2,58.52964886]
[1749488784506,19.71494595,156.23,156.2,58.52964886]
[1749488785913,19.71494595,156.23,156.2,64.93157297]
[1749488786596,19.71494595,156.21,156.2,39.88]
[1749488786801,24.50857498,156.21,156.2,39.88]
[1749488787123,24.50857498,156.21,156.19,10.58]
[1749488787294,24.50858345,156.2,156.19,10.58]
[1749488788007,30.9106321,156.2,156.19,10.58]
[1749488798144,46.91575373,156.2,156.15,50.44]
[1749488798445,19.71494595,156.16,156.15,10.56]
[1749488803657,26.11863447,156.16,156.15,10.56]
[1749488804853,26.11863447,156.16,156.14,50.42]
[1749488805056,19.71494595,156.15,156.14,50.42]
[1749488805471,19.71494595,156.15,156.14,10.54]
[1749488807354,6.40286848,156.18,156.14,10.54]
[1749488807553,19.71494595,156.15,156.14,10.54]
[1749488807752,6.40286848,156.18,156.14,10.54]
[1749488808059,19.71494595,156.16,156.14,10.54]
[1749488810066,19.71494595,156.17,156.14,10.54]
[1749488810431,6.40245854,156.19,156.14,10.54]
[1749488810655,19.71494595,156.16,156.14,10.54]
[1749488812461,19.71494595,156.15,156.14,10.54]
[1749488817072,26.11904457,156.15,156.14,10.54]
[1749488817777,19.71494595,156.15,156.14,10.54]
[1749488819579,26.11879067,156.16,156.14,10.54]
[1749488820779,19.71494595,156.15,156.14,10.54]
[1749488821791,4.78516294,156.18,156.15,18.64964886]
[1749488821963,19.71494595,156.21,156.17,19.71494595]
[1749488822164,19.71494595,156.21,156.17,39.86]
[1749488822482,45.71494595,156.22,156.17,59.57494595]
[1749488822790,26.11715573,156.2,156.17,39.86]
[1749488822969,19.71494595,156.18,156.17,39.86]
[1749488823290,19.71494595,156.18,156.16,39.86]
[1749488823663,11.18663117,156.21,156.17,18.64964886]
[1749488823867,19.71494595,156.2,156.17,18.64964886]
[1749488824371,19.71494595,156.21,156.17,18.64964886]
[1749488824582,11.18667276,156.23,156.18,19.71494595]
[1749488824786,6.40096149,156.23,156.19,19.71494595]
[1749488824991,6.40096149,156.23,156.2,10.54]
[1749488825288,30.90103996,156.23,156.2,10.54]
[1749488826287,45.71494595,156.24,156.2,70.11494595]
[1749488826495,4.78446033,156.24,156.22,19.71494595]
[1749488826677,4.78424995,156.25,156.22,19.71494595]
[1749488826855,6.40003943,156.25,156.22,19.71494595]
[1749488827175,19.71494595,156.23,156.2,50.4]
[1749488827355,19.71494595,156.21,156.2,50.4]
[1749488828377,19.71494595,156.23,156.2,50.4]
[1749488828686,4.78316171,156.24,156.2,70.11494595]
[1749488828882,11.18345582,156.25,156.21,19.71494595]
[1749488829059,30.89840177,156.25,156.21,19.71494595]
[1749488829460,26.11498538,156.25,156.21,19.71494595]
[1749488829660,26.11498538,156.25,156.2,70.11494595]
[1749488829661,30.8975548,156.25,156.2,70.11494595]
[1749488829886,4.78256942,156.25,156.22,19.71494595]
[1749488830075,4.78256942,156.25,156.21,38.36459481]
[1749488830076,26.11504451,156.25,156.21,38.36459481]
[1749488830271,26.11504451,156.25,156.21,18.64964886]
[1749488830480,19.71494595,156.24,156.21,18.64964886]
[1749488830664,30.89678085,156.25,156.21,18.64964886]
[1749488831084,52.11467789,156.26,156.21,44.7661774]
[1749488831272,26.11467789,156.26,156.22,19.71494595]
[1749488831482,30.89530038,156.26,156.21,38.36459481]
[1749488831678,26.11467789,156.26,156.21,38.36459481]
[1749488832182,26.11467789,156.26,156.22,19.71494595]
[1749488832378,4.77948197,156.27,156.21,14.35891697]
[1749488832695,19.71494595,156.29,156.25,18.64964886]
[1749488832994,26.11400569,156.28,156.26,10.54]
[1749488833370,6.39905974,156.28,156.26,10.54]
[1749488833698,26.11400569,156.28,156.26,10.54]
[1749488834067,19.71494595,156.27,156.26,10.54]
[1749488834390,26.11400569,156.28,156.26,10.54]
[1749488835175,19.71494595,156.3,156.27,18.64964886]
[1749488835402,4.77891026,156.31,156.26,10.54]
[1749488835403,19.71494595,156.29,156.26,10.54]
[1749488835606,6.39765677,156.31,156.26,10.54]
[1749488835607,19.71494595,156.27,156.26,10.54]
[1749488836688,26.11412685,156.27,156.26,10.54]
[1749488838376,19.71494595,156.27,156.26,10.54]
[1749488838680,6.39795265,156.3,156.26,10.54]
[1749488838889,19.71494595,156.28,156.26,10.54]
[1749488839082,19.71494595,156.27,156.26,10.54]
[1749488839288,22.39283428,156.3,156.26,10.54]
[1749488839503,19.71494595,156.27,156.26,10.54]
[1749488840806,26.11412685,156.27,156.26,10.54]
[1749488844982,6.39877143,156.28,156.26,10.54]
[1749488845288,19.71494595,156.27,156.26,10.54]
[1749488845706,6.39877143,156.28,156.26,10.54]
[1749488846023,6.39877143,156.28,156.26,50.36]
[1749488846024,19.71494595,156.28,156.26,50.36]
[1749488846313,19.71494595,156.27,156.26,50.36]
[1749488846893,6.39851208,156.29,156.26,50.36]
[1749488847097,19.71494595,156.27,156.26,69.00964886]
[1749488849113,26.11412685,156.27,156.26,50.36]
[1749488850012,6.3991809,156.27,156.26,50.36]
[1749488850213,26.11412685,156.27,156.26,50.36]
[1749488853631,26.11412685,156.27,156.26,10.54]
[1749488854812,6.3991809,156.27,156.26,10.54]
[1749488855029,26.11412685,156.27,156.26,10.54]
[1749488857403,19.71494595,156.27,156.26,10.54]
[1749488858210,19.71494595,156.27,156.26,29.18964886]
[1749488858928,6.39809962,156.3,156.27,18.64964886]
[1749488859139,6.39809962,156.3,156.27,58.44964886]
[1749488859140,19.71494595,156.28,156.27,58.44964886]
[1749488859301,19.71494595,156.29,156.27,58.44964886]
[1749488859502,6.39767655,156.31,156.27,58.44964886]
[1749488859714,19.71494595,156.28,156.27,58.59181043]
[1749488860022,19.71494595,156.28,156.27,58.733972]
[1749488860430,19.71494595,156.28,156.27,58.44964886]
[1749488862716,19.71494595,156.28,156.26,10.54]
[1749488862934,26.11412685,156.27,156.26,10.54]
[1749488864341,30.87687148,156.27,156.26,10.54]
[1749488864524,26.11412685,156.27,156.26,10.54]
[1749488864726,30.87687148,156.27,156.26,10.54]
[1749488864925,26.11412685,156.27,156.26,10.54]
[1749488865121,30.87687148,156.27,156.26,10.54]
[1749488865323,26.11412685,156.27,156.26,10.54]
[1749488865527,30.87687148,156.27,156.26,10.54]
[1749488866842,66.58976969,156.27,156.22,10.52]
[1749488867063,26.11576525,156.23,156.22,10.52]
[1749488867355,30.87850988,156.23,156.22,10.52]
[1749488868849,11.16356393,156.23,156.22,10.52]
[1749488869053,26.11576525,156.23,156.22,10.52]
[1749488870128,26.11506988,156.25,156.23,18.64964886]
[1749488870449,26.11506988,156.25,156.24,0.14216157]
[1749488870838,30.9009974,156.25,156.24,0.14216157]
[1749488872545,30.9009974,156.25,156.23,18.933972]
[1749488872747,26.11506988,156.25,156.23,18.933972]
[1749488872946,19.71494595,156.25,156.23,18.933972]
[1749488873656,26.11418022,156.27,156.26,0.28432314]
[1749488873953,30.90165407,156.27,156.26,0.28432314]
[1749488874147,4.78747385,156.27,156.26,0.28432314]
[1749488875340,19.71494595,156.3,156.28,0.28432314]
[1749488875656,19.71494595,156.3,156.29,18.64964886]
[1749488875966,24.50193702,156.3,156.28,50.60432314]
[1749488876292,6.39750918,156.32,156.3,0.28432314]
[1749488876457,4.78655564,156.31,156.3,0.28432314]
[1749488877224,11.18409898,156.31,156.3,0.28432314]
[1749488877450,30.89904493,156.31,156.3,0.28432314]
[1749488878159,11.18409898,156.31,156.3,0.28432314]
[1749488878348,30.89904493,156.31,156.3,0.28432314]
[1749488880545,11.18409898,156.31,156.3,0.28432314]
[1749488880860,30.89904493,156.31,156.3,0.28432314]
[1749488881242,30.89904493,156.31,156.28,10.52]
[1749488881541,19.71494595,156.29,156.28,10.52]
[1749488881742,24.50150159,156.29,156.28,10.52]
[1749488881948,24.50150159,156.29,156.28,29.453972]
[1749488882572,24.50150159,156.29,156.28,10.52]
[1749488882873,30.8998636,156.29,156.28,10.80432314]
[1749488883435,11.18491765,156.29,156.28,10.80432314]
[1749488884467,30.8998636,156.29,156.28,10.80432314]
[1749488884880,4.78655564,156.29,156.28,10.80432314]
[1749488885672,30.8998636,156.29,156.28,10.80432314]
[1749488887367,11.18491765,156.29,156.28,10.80432314]
[1749488887665,30.8998636,156.29,156.28,10.80432314]
[1749488888044,30.8998636,156.29,156.28,10.52]
[1749488888674,30.8998636,156.29,156.28,10.66216157]
[1749488889566,11.18491765,156.29,156.28,29.453972]
[1749488889770,4.78655564,156.3,156.28,69.233972]
[1749488889979,4.78655564,156.29,156.28,69.233972]
[1749488890177,4.78655564,156.3,156.28,69.233972]
[1749488890349,6.39799669,156.3,156.28,69.233972]
[1749488890664,32.3976689,156.31,156.28,69.233972]
[1749488890966,4.78388054,156.3,156.29,18.933972]
[1749488891175,4.78388054,156.31,156.29,18.933972]
[1749488891358,26.11209648,156.32,156.29,18.933972]
[1749488891558,4.78293076,156.31,156.29,18.933972]
[1749488891973,19.71494595,156.32,156.29,18.933972]
[1749488892145,4.78292031,156.31,156.29,18.933972]
[1749488892549,4.78292031,156.32,156.29,45.14731795]
[1749488892797,4.78292031,156.32,156.31,38.64891795]
[1749488892798,4.78178135,156.32,156.31,38.64891795]
[1749488892951,4.78162471,156.34,156.32,18.64964886]
[1749488893275,4.78162471,156.33,156.32,18.933972]
[1749488893471,4.78162471,156.34,156.32,18.933972]
[1749488893653,4.78162471,156.33,156.32,18.933972]
[1749488893853,4.78162471,156.34,156.32,18.933972]
[1749488894067,4.78162471,156.33,156.32,18.933972]
[1749488894275,11.1780111,156.34,156.32,18.933972]
[1749488895288,4.78162471,156.34,156.32,18.933972]
[1749488895456,11.17817264,156.34,156.32,18.933972]
[1749488895955,30.89311859,156.34,156.32,18.933972]
[1749488896153,26.11149388,156.34,156.32,18.933972]
[1749488896370,30.89311859,156.34,156.32,18.933972]
[1749488896678,26.11149388,156.34,156.32,18.933972]
[1749488896860,11.17817264,156.34,156.32,18.933972]
[1749488897253,6.39654793,156.34,156.32,18.933972]
[1749488897959,19.71494595,156.33,156.32,18.933972]
[1749488898282,11.17817264,156.34,156.32,18.933972]
[1749488898458,6.39654793,156.34,156.32,18.64964886]
[1749488898665,19.71494595,156.33,156.31,0.14216157]
[1749488898979,26.11208003,156.32,156.31,0.14216157]
[1749488899164,6.39713408,156.32,156.31,0.14216157]
[1749488899362,4.78162471,156.35,156.31,0.14216157]
[1749488899548,26.11044351,156.36,156.33,0.14216157]
[1749488899754,11.16573297,156.36,156.35,18.933972]
[1749488899992,11.16573297,156.36,156.35,18.79181043]
[1749488900656,6.39549756,156.36,156.35,18.79181043]
[1749488900848,11.16478303,156.39,156.35,44.67875638]
[1749488901053,4.77023541,156.38,156.37,19.71494595]
[1749488901280,11.16425829,156.4,156.37,38.50675638]
[1749488901672,6.39402288,156.4,156.37,38.50675638]
[1749488902254,30.87880671,156.41,156.38,18.933972]
[1749488902481,30.87880671,156.41,156.4,18.79181043]
[1749488902864,26.1085713,156.41,156.4,18.79181043]
[1749488903065,30.87880671,156.41,156.4,0.14216157]
[1749488903879,6.39229507,156.44,156.4,88.90891795]
[1749488904079,11.15444556,156.45,156.42,38.64891795]
[1749488904286,6.39155215,156.46,156.43,59.47494595]
[1749488904681,6.39111472,156.47,156.44,38.64891795]
[1749488904890,26.10606067,156.47,156.44,18.933972]
[1749488905273,6.39111472,156.47,156.44,18.933972]
[1749488907398,6.39111472,156.47,156.44,38.64891795]
[1749488907574,15.97276548,156.52,156.47,18.64964886]
[1749488907775,19.71494595,156.49,156.48,0.14216157]
[1749488909000,26.10513062,156.49,156.48,0.14216157]
[1749488910297,26.10513062,156.49,156.47,58.38964886]
[1749488910599,19.71494595,156.48,156.47,58.53181043]
[1749488910961,19.71494595,156.49,156.48,0.14216157]
[1749488911162,6.38977635,156.5,156.48,19.99926909]
[1749488911397,182.72125148,156.55,156.5,18.79181043]
[1749488911398,6.38934056,156.52,156.5,18.79181043]
[1749488911596,6.38934056,156.52,156.51,19.99926909]
[1749488911774,6.3881436,156.54,156.51,19.99926909]
[1749488911973,6.3881436,156.54,156.53,18.79181043]
[1749488913202,6.3881436,156.54,156.53,0.14216157]
[1749488914080,6.3881436,156.54,156.52,0.14216157]
[1749488916302,6.3881436,156.54,156.53,40.00432314]
[1749488916495,26.10308955,156.54,156.53,40.00432314]
[1749488916692,26.10308955,156.54,156.53,58.51181043]
[1749488917881,6.3881436,156.54,156.53,58.36964886]
[1749488918577,6.3881436,156.54,156.53,58.51181043]
[1749488918771,6.3881436,156.54,156.53,58.653972]
[1749488919002,6.3881436,156.54,156.53,78.36891795]
[1749488919198,7.26951614,156.55,156.54,18.79181043]
[1749488919376,0.8816377,156.55,156.54,18.933972]
[1749488919695,26.98431919,156.55,156.54,18.933972]
[1749488920320,42.95365805,156.55,156.48,6.5342]
[1749488920475,23.2387121,156.55,156.5,18.64964886]
[1749488920675,23.2387121,156.55,156.5,18.933972]
[1749488920676,19.71494595,156.51,156.5,18.933972]
[1749488920876,19.71494595,156.51,156.5,18.79181043]
[1749488921107,19.71494595,156.51,156.5,18.64964886]
[1749488921774,55.17738983,156.55,156.5,18.64964886]
[1749488921979,19.71494595,156.51,156.5,18.64964886]
[1749488922276,55.17738983,156.55,156.5,18.64964886]
[1749488922489,19.71494595,156.51,156.5,18.64964886]
[1749488923116,19.71494595,156.51,156.46,18.64964886]
[1749488923277,19.71494595,156.47,156.46,18.64964886]
[1749488923484,19.71494595,156.47,156.46,58.34964886]
[1749488923783,19.71494595,156.47,156.46,18.79181043]
[1749488924095,26.10594741,156.47,156.46,18.64964886]
[1749488924917,26.10594741,156.47,156.46,18.933972]
[1749488925133,26.10594741,156.47,156.45,10.48]
[1749488925333,19.71494595,156.46,156.45,18.64964886]
[1749488925999,26.10635589,156.46,156.45,18.64964886]
[1749488927226,6.39140994,156.46,156.45,18.933972]
[1749488927719,26.10635589,156.46,156.45,18.933972]
[1749488928841,15.975644,156.49,156.46,0.28432314]
[1749488928842,22.36582867,156.49,156.46,0.28432314]
[1749488929119,19.71494595,156.47,156.46,0.28432314]
[1749488929837,19.71494595,156.48,156.46,18.933972]
[1749488930120,19.71494595,156.48,156.46,0.28432314]
[1749488930419,19.71494595,156.47,156.46,0.28432314]
[1749488931222,26.10594741,156.47,156.46,0.28432314]
[1749488932593,42.08345108,156.47,156.44,18.64964886]
[1749488932798,19.71494595,156.45,156.44,18.64964886]
[1749488933298,26.10676442,156.45,156.44,18.933972]
[1749488934316,26.10676442,156.45,156.44,0.28432314]
[1749488940109,6.39181847,156.45,156.44,0.28432314]
[1749488940305,26.0,156.46,156.45,0.14216157]
[1749488941215,45.71494595,156.46,156.45,0.14216157]
[1749488941421,45.71494595,156.46,156.43,0.28432314]
[1749488941746,19.71494595,156.45,156.43,0.28432314]
[1749488941925,6.39222705,156.44,156.43,0.28432314]
[1749488943395,26.107173,156.44,156.43,0.28432314]
[1749488943862,6.39222705,156.44,156.43,0.14216157]
[1749488943998,6.39181847,156.45,156.42,18.64964886]
[1749488944196,19.71494595,156.43,156.42,18.64964886]
[1749488944708,19.71494595,156.43,156.4,18.64964886]
[1749488945105,19.71494595,156.43,156.41,0.28432314]
[1749488945322,19.71494595,156.43,156.4,18.64964886]
[1749488945520,19.71494595,156.41,156.4,18.933972]
[1749488945723,4.75233601,156.44,156.4,18.933972]
[1749488945911,26.10839905,156.41,156.4,18.933972]
[1749488946524,26.10839905,156.41,156.4,0.28432314]
[1749488946729,19.71494595,156.41,156.4,0.28432314]
[1749488947224,26.10839905,156.41,156.4,0.28432314]
[1749488947431,6.3934531,156.41,156.4,0.28432314]
[1749488948928,26.10839905,156.41,156.4,0.28432314]
[1749488949114,6.39317527,156.42,156.41,0.14216157]
[1749488950532,50.46728196,156.45,156.41,0.28432314]
[1749488950833,45.71494595,156.45,156.41,0.28432314]
[1749488951038,6.39240195,156.44,156.41,0.28432314]
[1749488951606,26.1073479,156.44,156.41,0.28432314]
[1749488953131,19.71494595,156.46,156.43,0.28432314]
[1749488953332,19.71494595,156.44,156.43,0.28432314]
[1749488954726,26.107173,156.44,156.43,0.28432314]
[1749488955635,19.71494595,156.44,156.43,0.28432314]
[1749488955843,26.107173,156.44,156.43,0.28432314]
[1749488956242,26.10691924,156.45,156.43,0.28432314]
[1749488956630,26.10622626,156.47,156.43,0.28432314]
[1749488956831,19.71494595,156.46,156.43,0.28432314]
[1749488958878,6.39181847,156.45,156.43,0.28432314]
[1749488959053,26.10676442,156.45,156.43,0.28432314]
[1749488959626,19.71494595,156.45,156.43,0.28432314]
[1749488960460,26.10636666,156.46,156.43,0.28432314]
[1749488961258,19.71494595,156.45,156.43,0.28432314]
[1749488962843,26.10683861,156.45,156.43,0.28432314]
[1749488963941,19.71494595,156.44,156.43,0.28432314]
[1749488964336,24.48327697,156.44,156.43,0.28432314]
[1749488964533,4.77663012,156.44,156.43,0.28432314]
[1749488964869,30.88267052,156.46,156.43,0.28432314]
[1749488965077,11.16818274,156.45,156.43,0.28432314]
[1749488965239,6.39147504,156.46,156.43,0.28432314]
[1749488965440,4.78001035,156.45,156.43,0.28432314]
[1749488965864,19.71494595,156.47,156.43,0.28432314]
[1749488965865,6.39026351,156.49,156.45,0.28432314]
[1749488966065,6.39026351,156.49,156.47,0.28432314]
[1749488966066,4.77974474,156.48,156.47,0.28432314]
[1749488967055,4.77974474,156.48,156.47,18.933972]
[1749488967237,24.4951739,156.5,156.47,18.933972]
[1749488967444,4.78022795,156.49,156.47,18.933972]
[1749488967668,4.78022795,156.48,156.47,18.933972]
[1749488967967,4.78022795,156.49,156.47,58.633972]
[1749488968174,19.71494595,156.51,156.47,65.02493111]
[1749488968376,4.78059572,156.5,156.47,84.73987706]
[1749488968667,4.78059572,156.49,156.47,78.34891795]
[1749488968964,26.10464423,156.51,156.47,58.633972]
[1749488969162,4.77931527,156.5,156.47,58.633972]
[1749488969468,4.77931527,156.49,156.47,58.633972]
[1749488969647,26.10464423,156.51,156.47,58.633972]
[1749488969856,4.77842949,156.5,156.47,58.633972]
[1749488970146,4.77842949,156.49,156.47,58.633972]
[1749488970349,4.77808724,156.5,156.47,58.633972]
[1749488970547,26.10464423,156.51,156.47,58.633972]
[1749488970548,4.77808724,156.49,156.47,58.633972]
[1749488970748,26.10464423,156.51,156.47,58.633972]
[1749488970955,4.77721759,156.5,156.47,58.633972]
[1749488971255,4.77721759,156.49,156.47,78.34891795]
[1749488971444,4.77721759,156.5,156.47,78.34891795]
[1749488971644,4.77721759,156.49,156.47,78.34891795]
[1749488971855,4.77721759,156.5,156.47,84.7398224]
[1749488972053,19.71494595,156.51,156.47,84.7398224]
[1749488972246,4.77618007,156.5,156.47,84.7398224]
[1749488973852,4.77618007,156.51,156.47,84.7398224]
[1749488974177,6.38937378,156.51,156.48,18.933972]
[1749488974356,4.77393576,156.5,156.48,18.933972]
[1749488974553,4.77393576,156.5,156.48,38.64891795]
[1749488974854,4.77393576,156.51,156.5,18.933972]
[1749488975051,4.77393576,156.52,156.5,58.613972]
[1749488975256,4.77393576,156.51,156.5,58.613972]
[1749488975487,4.77393576,156.52,156.5,58.613972]
[1749488975690,4.77393576,156.51,156.5,58.613972]
[1749488975850,4.77393576,156.52,156.5,58.613972]
[1749488976051,4.77393576,156.51,156.5,58.613972]
[1749488976371,4.77393576,156.52,156.5,58.613972]
[1749488976572,4.77393576,156.51,156.5,58.613972]
[1749488976775,4.77393576,156.52,156.5,58.613972]
[1749488976967,4.77393576,156.51,156.5,58.613972]
[1749488977163,4.77393576,156.53,156.5,58.613972]
[1749488977477,4.77393576,156.52,156.5,58.613972]
[1749488977779,4.77393576,156.53,156.5,58.613972]
[1749488977982,4.77393576,156.52,156.5,58.613972]
[1749488978144,19.71494595,156.52,156.5,58.613972]
[1749488978351,24.48888171,156.52,156.5,58.613972]
[1749488978552,11.16253713,156.53,156.5,58.613972]
[1749488978776,24.48888171,156.53,156.5,58.613972]
[1749488980260,19.71494595,156.52,156.5,58.613972]
[1749488981075,19.71494595,156.51,156.5,58.613972]
[1749488981413,19.71494595,156.51,156.48,58.613972]
[1749488981577,19.71494595,156.5,156.48,58.613972]
[1749488982177,19.71494595,156.49,156.48,0.28432314]
[1749488982361,19.71494595,156.49,156.48,58.613972]
[1749488982868,19.71494595,156.49,156.48,18.933972]
[1749488983680,19.71494595,156.49,156.48,18.64964886]
[1749488983879,30.87175908,156.49,156.48,18.64964886]
[1749488984268,30.87175908,156.49,156.48,18.79181043]
[1749488984666,30.87175908,156.49,156.48,18.64964886]
[1749488984864,26.10513062,156.49,156.48,18.64964886]
[1749488985181,30.87175908,156.49,156.48,18.64964886]
[1749488985377,30.87175908,156.49,156.48,18.79181043]
[1749488985578,26.0,156.48,156.4,6.3293]
[1749488985780,26.0,156.48,156.42,18.64964886]
[1749488985781,4.76662846,156.47,156.42,18.64964886]
[1749488985989,19.71494595,156.46,156.43,0.28432314]
[1749488987870,19.71494595,156.45,156.43,0.28432314]
[1749488988267,19.71494595,156.44,156.43,0.28432314]
[1749488988468,19.71494595,156.44,156.42,18.79181043]
[1749488988674,19.71494595,156.43,156.42,18.79181043]
[1749488988905,19.71494595,156.43,156.42,18.933972]
[1749488989762,6.39154491,156.46,156.43,0.14216157]
[1749488989968,19.71494595,156.44,156.43,0.14216157]
[1749488992581,26.107173,156.44,156.42,18.933972]
[1749488992779,19.71494595,156.43,156.42,18.933972]
[1749488994878,6.39192381,156.45,156.42,18.933972]
[1749488995077,19.71494595,156.44,156.42,18.933972]
[1749488995278,6.3915273,156.46,156.42,18.933972]
[1749488995496,19.71494595,156.45,156.42,18.933972]
[1749488995673,19.71494595,156.44,156.42,18.933972]
[1749488998497,19.71494595,156.43,156.42,18.933972]
[1749488998671,19.71494595,156.43,156.42,0.28432314]
[1749488999777,26.10739185,156.44,156.42,0.28432314]
[1749489001376,26.10687832,156.45,156.42,0.28432314]
[1749489001585,26.10687832,156.45,156.42,18.933972]
[1749489002181,4.7727171,156.46,156.42,45.04194943]
[1749489002182,6.39141173,156.46,156.42,45.04194943]
[1749489002382,19.71494595,156.44,156.42,18.933972]
[1749489002686,19.71494595,156.44,156.42,0.28432314]
[1749489002884,19.71494595,156.45,156.42,18.933972]
[1749489003481,11.16412883,156.46,156.42,0.28432314]
[1749489003482,26.10635768,156.46,156.42,0.28432314]
[1749489003781,30.87869491,156.47,156.42,38.64891795]
[1749489003998,26.10597781,156.47,156.42,38.64891795]
[1749489004188,19.71494595,156.46,156.42,38.64891795]
[1749489004515,6.39103186,156.47,156.42,38.64891795]
[1749489004688,19.71494595,156.45,156.42,18.933972]
[1749489005303,26.106902,156.45,156.42,18.933972]
[1749489005689,19.71494595,156.45,156.42,18.933972]
[1749489006183,19.71494595,156.46,156.42,45.04196068]
[1749489006382,24.48766305,156.46,156.42,45.04196068]